bitfinex/quotes_SOLUSD_20250226
["timestamp","ask_amount","ask_price","bid_price","bid_amount"]
[1740576066928,0.063,137.12,137.06,7.296]
[1740576067124,0.20516157,137.12,137.06,90.196]
[1740576068214,0.063,137.12,137.06,90.196]
[1740576068419,0.063,137.12,137.07,18.64964886]
[1740576069136,0.063,137.12,137.08,7.295]
[1740576069455,0.063,137.12,137.08,25.5325]
[1740576072243,0.063,137.12,137.08,108.4325]
[1740576073320,0.063,137.12,137.11,38.64964886]
[1740576073536,0.063,137.14,137.12,18.64964886]
[1740576074055,0.063,137.14,137.11,219.1]
[1740576074911,0.063,137.14,137.08,108.4325]
[1740576075146,0.063,137.14,137.09,18.64964886]
[1740576075922,0.0001,137.18,137.12,20.0]
[1740576076121,0.0001,137.18,137.12,239.1]
[1740576076549,0.0001,137.18,137.13,18.64964886]
[1740576076732,0.0001,137.18,137.12,239.1]
[1740576076935,0.0001,137.18,137.13,81.06093357]
[1740576077156,0.0001,137.18,137.13,82.59152016]
[1740576077819,0.063,137.2,137.17,18.64964886]
[1740576077820,0.0001,137.2,137.17,18.64964886]
[1740576078018,0.0001,137.2,137.17,237.74964886]
[1740576079140,0.0001,137.2,137.18,7.2896]
[1740576081166,0.0001,137.2,137.18,226.3896]
[1740576083332,0.0001,137.2,137.18,7.2896]
[1740576083835,0.029954,137.22,137.18,7.2896]
[1740576084036,0.029954,137.22,137.18,25.5138]
[1740576084229,0.029954,137.22,137.18,108.4138]
[1740576084767,0.17211557,137.22,137.18,90.1896]
[1740576085133,0.029954,137.22,137.18,90.1896]
[1740576085337,0.029954,137.22,137.18,108.4138]
[1740576085860,0.029954,137.22,137.18,90.1896]
[1740576087272,0.029954,137.22,137.18,246.14429902]
[1740576087575,0.029954,137.22,137.18,244.6138]
[1740576088072,0.029954,137.22,137.18,108.4138]
[1740576088375,20.029954,137.22,137.18,108.4138]
[1740576088585,20.0,137.18,137.15,7.2912]
[1740576088784,20.0,137.17,137.1,18.2336]
[1740576089072,20.0,137.17,137.1,237.3336]
[1740576089441,0.28432314,137.16,137.1,237.3336]
[1740576089643,0.28432314,137.16,137.1,219.1]
[1740576089964,0.28432314,137.14,137.08,7.295]
[1740576090272,0.28432314,137.14,137.08,25.5325]
[1740576090471,81.1,137.15,137.08,25.5325]
[1740576090649,81.1,137.15,137.08,63.53870057]
[1740576090861,6.9,137.16,137.08,281.1075]
[1740576091277,20.0,137.17,137.08,281.1075]
[1740576091439,20.0,137.16,137.08,281.1075]
[1740576091646,0.14216157,137.18,137.08,281.1075]
[1740576092372,81.1,137.19,137.1,19.21829514]
[1740576092573,0.029954,137.22,137.13,20.0]
[1740576092777,81.129954,137.22,137.13,82.9]
[1740576093082,20.0,137.18,137.13,82.9]
[1740576094061,20.0,137.18,137.14,7.2918]
[1740576095668,20.0,137.18,137.14,25.5213]
[1740576095882,0.14216157,137.19,137.14,7.2918]
[1740576096190,20.0,137.15,137.09,82.9]
[1740576096354,25.853972,137.14,137.07,7.2955]
[1740576096552,20.0,137.11,137.07,7.2955]
[1740576096776,20.0,137.09,137.04,7.2971]
[1740576097077,20.0,137.07,137.03,8.78]
[1740576097279,20.0,137.06,137.03,8.78]
[1740576097487,20.0,137.05,137.03,8.78]
[1740576098876,127.23829514,137.04,137.03,8.78]
[1740576101554,128.23829514,137.04,137.03,8.78]
[1740576101897,39.21829514,137.01,137.0,0.03]
[1740576102053,41.21829514,137.01,137.0,0.03]
[1740576102251,40.21829514,137.01,137.0,0.03]
[1740576102458,39.21829514,137.01,137.0,0.03]
[1740576106484,0.28432314,137.01,137.0,0.03]
[1740576106863,39.21829514,137.01,137.0,0.03]
[1740576108677,40.21829514,137.01,137.0,0.03]
[1740576109490,40.21829514,137.01,136.93,0.03]
[1740576109491,20.28432314,136.94,136.93,0.03]
[1740576109657,46.11829514,136.94,136.93,0.03]
[1740576111974,27.18432314,136.94,136.93,0.03]
[1740576112486,46.11829514,136.94,136.93,0.03]
[1740576113489,27.18432314,136.94,136.93,0.03]
[1740576113781,27.04216157,136.94,136.93,0.03]
[1740576113981,47.11829514,136.94,136.93,0.03]
[1740576114375,28.18432314,136.94,136.93,0.03]
[1740576114765,46.97613357,136.94,136.93,0.03]
[1740576115286,47.11829514,136.94,136.93,0.03]
[1740576120493,48.11829514,136.94,136.93,0.03]
[1740576120696,49.11829514,136.94,136.93,0.03]
[1740576122780,51.85528066,136.94,136.93,0.03]
[1740576123587,29.24663438,136.94,136.93,0.03]
[1740576124095,7.86,136.94,136.93,0.03]
[1740576124293,1.0,136.94,136.93,0.03]
[1740576124989,40.21829514,136.94,136.93,0.03]
[1740576126001,21.0,136.94,136.93,0.03]
[1740576126189,20.21829514,136.94,136.93,0.03]
[1740576126699,40.21829514,136.94,136.93,0.03]
[1740576128017,42.96240776,136.94,136.93,0.03]
[1740576129400,40.21829514,136.94,136.93,0.03]
[1740576129599,21.28432314,136.94,136.93,0.03]
[1740576130009,1.0,136.94,136.93,0.03]
[1740576130513,1.28432314,136.94,136.93,0.03]
[1740576130704,21.28432314,136.94,136.93,0.03]
[1740576130914,40.21829514,136.94,136.93,0.03]
[1740576132827,40.07613357,136.94,136.93,0.03]
[1740576133117,1.0,136.94,136.93,0.03]
[1740576133911,1.0,136.94,136.93,7.333]
[1740576135109,81.1,137.0,136.93,145.0055]
[1740576135317,0.063,137.03,136.93,145.0055]
[1740576135318,19.21829514,137.01,136.93,108.4905]
[1740576135710,0.14216157,136.98,136.93,108.4905]
[1740576135898,0.063,136.95,136.93,108.4905]
[1740576136717,0.063,136.95,136.93,25.5905]
[1740576138513,0.063,136.95,136.93,108.4905]
[1740576138693,0.063,136.95,136.93,7.333]
[1740576138899,0.20516157,136.95,136.93,0.03]
[1740576139112,0.063,136.95,136.93,0.03]
[1740576139696,2.78199878,136.94,136.93,0.03]
[1740576140028,9.878e-05,136.95,136.93,82.93]
[1740576140209,9.878e-05,136.95,136.94,7.3024]
[1740576141808,9.878e-05,136.95,136.94,90.2024]
[1740576142013,9.878e-05,136.95,136.94,226.4024]
[1740576142204,9.878e-05,136.95,136.94,245.47853357]
[1740576142401,9.878e-05,136.95,136.94,247.47853357]
[1740576143115,9.878e-05,136.95,136.94,247.62069514]
[1740576143298,9.878e-05,137.03,136.99,1.28432314]
[1740576143499,9.878e-05,137.03,137.02,20.0]
[1740576143700,9.878e-05,137.03,137.02,239.1]
[1740576143894,9.878e-05,137.03,137.02,239.38432314]
[1740576144119,8.25439212,137.09,137.02,267.61649514]
[1740576144302,8.25439212,137.09,137.06,20.0]
[1740576144499,8.25439212,137.09,137.06,239.1]
[1740576144815,15.96981775,137.13,137.06,239.1]
[1740576145918,81.1,137.15,137.06,239.1]
[1740576146701,81.1,137.15,137.07,25.5343]
[1740576147112,1.0,137.13,137.07,25.5343]
[1740576147324,0.14216157,137.12,137.07,7.2955]
[1740576149223,1.0,137.13,137.07,7.2955]
[1740576149519,1.0,137.13,137.07,25.5343]
[1740576149718,1.0,137.13,137.07,108.4343]
[1740576152628,0.14216157,137.12,137.07,90.1955]
[1740576152810,19.07613357,137.12,137.07,90.1955]
[1740576153009,0.14216157,137.11,137.05,90.1964]
[1740576153217,25.69181043,137.12,137.05,90.1964]
[1740576153523,7.04216157,137.12,137.05,108.4379]
[1740576155419,25.69181043,137.12,137.05,108.4379]
[1740576155618,0.14216157,137.1,137.05,108.4379]
[1740576156315,0.14216157,137.08,137.05,7.2964]
[1740576157225,0.14216157,137.08,137.04,7.2971]
[1740576157722,0.14216157,137.06,137.04,7.2971]
[1740576158719,0.14216157,137.07,137.04,7.2971]
[1740576159118,6.9,137.12,137.04,25.5399]
[1740576159321,6.9,137.12,137.04,244.6399]
[1740576159814,6.9,137.12,137.07,20.0]
[1740576160012,0.03,137.15,137.07,102.9]
[1740576161331,18.67964886,137.15,137.08,25.5325]
[1740576162811,18.67964886,137.15,137.08,108.4325]
[1740576163930,19.07613357,137.12,137.08,90.195]
[1740576164322,39.07613357,137.12,137.08,90.195]
[1740576164932,20.14216157,137.12,137.08,90.195]
[1740576165122,21.0,137.13,137.08,108.4325]
[1740576165324,1.0,137.13,137.08,108.4325]
[1740576171230,1.03,137.13,137.08,108.4325]
[1740576171823,1.03,137.13,137.08,282.63879864]
[1740576172142,1.03,137.13,137.11,20.0]
[1740576172339,1.03,137.13,137.11,82.9]
[1740576173341,1.03,137.13,137.12,7.2928]
[1740576173719,0.03,137.15,137.12,25.525]
[1740576176429,0.17216157,137.15,137.12,7.2928]
[1740576177042,0.03,137.15,137.12,25.525]
[1740576177441,0.03,137.15,137.1,25.5287]
[1740576178858,0.14216157,137.14,137.1,25.5287]
[1740576179239,6.91,137.15,137.1,25.5287]
[1740576180042,6.91,137.15,137.1,61.9984]
[1740576180442,0.14216157,137.14,137.1,25.5287]
[1740576180839,19.21829514,137.14,137.1,7.2939]
[1740576181046,6.91,137.15,137.1,7.2939]
[1740576181536,6.91,137.15,137.1,119.3697]
[1740576181736,0.03,137.15,137.1,119.3697]
[1740576182138,0.03,137.15,137.13,20.0]
[1740576183667,0.03,137.15,137.14,7.2918]
[1740576184548,0.063,137.17,137.14,25.5213]
[1740576184962,0.063,137.17,137.16,20.0]
[1740576185163,0.03,137.21,137.16,239.1]
[1740576185670,0.03,137.21,137.17,25.5157]
[1740576189060,5.4e-05,137.23,137.21,21.0]
[1740576189260,0.063,137.24,137.21,102.9]
[1740576189261,5.4e-05,137.24,137.21,102.9]
[1740576189468,5.4e-05,137.24,137.21,82.9]
[1740576189852,5.4e-05,137.24,137.22,7.2875]
[1740576190373,0.14221557,137.24,137.22,7.2875]
[1740576190764,5.4e-05,137.24,137.19,7.2891]
[1740576190950,5.4e-05,137.24,137.19,108.412]
[1740576191737,5.4e-05,137.24,137.2,0.28432314]
[1740576191943,5.4e-05,137.24,137.2,1.8141211]
[1740576192243,5.4e-05,137.24,137.2,0.28432314]
[1740576192564,5.4e-05,137.24,137.22,0.42648471]
[1740576193464,5.4e-05,137.24,137.23,20.0]
[1740576193790,5.4e-05,137.24,137.23,27.287]
[1740576195050,5.4e-05,137.25,137.23,27.287]
[1740576197254,5.4e-05,137.25,137.23,246.387]
[1740576198565,5.4e-05,137.27,137.24,1.95604418]
[1740576198765,5.4e-05,137.28,137.24,221.05604418]
[1740576198960,5.4e-05,137.28,137.24,220.52648471]
[1740576199283,5.4e-05,137.29,137.24,228.42648471]
[1740576200672,5.4e-05,137.29,137.25,25.5008]
[1740576200873,5.4e-05,137.29,137.25,108.4008]
[1740576201259,5.4e-05,137.29,137.25,25.5008]
[1740576206871,0.28437714,137.29,137.25,25.5008]
[1740576207069,20.0,137.27,137.25,7.2859]
[1740576207576,20.0,137.27,137.19,61.9578]
[1740576207976,1.000054,137.29,137.2,0.28432314]
[1740576208177,1.000054,137.29,137.21,0.14216157]
[1740576208679,1.000054,137.29,137.21,1.67178725]
[1740576209278,1.000054,137.29,137.23,20.0]
[1740576210086,1.000054,137.29,137.24,25.5027]
[1740576212081,1.000054,137.29,137.23,36.434]
[1740576214394,1.000054,137.29,137.23,37.96370731]
[1740576215288,5.4e-05,137.3,137.26,20.0]
[1740576215458,5.4e-05,137.3,137.27,25.4971]
[1740576217163,0.03,137.29,137.27,25.4971]
[1740576217363,0.03,137.29,137.25,25.5008]
[1740576217577,5.4e-05,137.3,137.25,25.5008]
[1740576217777,5.4e-05,137.3,137.26,0.42648471]
[1740576217959,5.4e-05,137.3,137.26,20.07613357]
[1740576219360,5.4e-05,137.3,137.27,25.4971]
[1740576220273,5.4e-05,137.3,137.27,32.3571]
[1740576220973,5.4e-05,137.3,137.27,25.4971]
[1740576221381,5.4e-05,137.3,137.25,36.4298]
[1740576223588,0.14216157,137.28,137.24,25.5027]
[1740576224883,5.4e-05,137.3,137.24,25.5027]
[1740576225188,5.4e-05,137.3,137.24,61.9352]
[1740576225483,5.4e-05,137.3,137.24,36.4325]
[1740576226487,5.4e-05,137.3,137.27,20.0]
[1740576227693,5.4e-05,137.3,137.28,7.2843]
[1740576232985,5.4e-05,137.34,137.32,20.0]
[1740576233168,5.4e-05,137.34,137.33,7.2817]
[1740576233370,5.4e-05,137.36,137.34,0.42648471]
[1740576233575,5.4e-05,137.39,137.34,6.84]
[1740576234879,5.4e-05,137.39,137.33,61.8946]
[1740576235082,18.07618757,137.4,137.33,61.8946]
[1740576235280,0.03,137.43,137.36,0.42648471]
[1740576235492,0.03,137.43,137.35,0.42648471]
[1740576236274,0.03,137.43,137.35,4.00879141]
[1740576236487,0.03,137.43,137.36,1.52811406]
[1740576236891,0.03,137.43,137.35,24.18636993]
[1740576237389,0.03,137.43,137.36,61.881]
[1740576237596,19.21829514,137.42,137.36,25.4804]
[1740576237771,0.03,137.43,137.36,25.4804]
[1740576238100,0.03,137.44,137.39,20.0]
[1740576238680,0.03,137.44,137.36,98.2816]
[1740576238875,0.03,137.44,137.36,101.96664888]
[1740576239079,0.03,137.44,137.36,98.2816]
[1740576239293,0.03,137.44,137.36,91.0015]
[1740576239903,18.79181043,137.43,137.36,91.0015]
[1740576240414,18.79181043,137.41,137.36,18.2003]
[1740576241012,18.79181043,137.41,137.35,7.2806]
[1740576241393,0.14216157,137.4,137.34,25.484]
[1740576241602,0.14216157,137.38,137.34,25.484]
[1740576241783,0.14216157,137.39,137.34,25.484]
[1740576242414,0.03,137.44,137.38,0.42648471]
[1740576242577,14.77738174,137.53,137.4,0.42648471]
[1740576243006,20.0,137.5,137.4,0.42648471]
[1740576243380,18.79181043,137.49,137.4,61.8631]
[1740576243578,18.64964886,137.49,137.4,61.8631]
[1740576243788,18.64964886,137.52,137.4,61.8631]
[1740576244095,15.77738174,137.53,137.4,61.8631]
[1740576244279,20.0,137.5,137.4,63.39072359]
[1740576244475,2.86970179,137.56,137.44,25.4656]
[1740576244679,19.21829514,137.54,137.44,25.4656]
[1740576244888,18.64964886,137.54,137.44,25.4656]
[1740576245493,25.12352401,137.59,137.45,1.95389018]
[1740576245695,18.10352401,137.59,137.47,20.0]
[1740576245902,0.14216157,137.56,137.47,20.0]
[1740576246078,16.10352401,137.59,137.51,20.0]
[1740576246277,16.10352401,137.59,137.51,27.12]
[1740576246516,16.10352401,137.59,137.52,25.4507]
[1740576246814,11.21567311,137.61,137.52,25.4507]
[1740576246986,20.0,137.59,137.52,25.4507]
[1740576247193,2.0,137.6,137.5,7.2727]
[1740576247389,0.56864628,137.59,137.5,7.2727]
[1740576247594,1.56864628,137.59,137.5,7.2727]
[1740576247805,19.21829514,137.54,137.48,134.82]
[1740576247986,19.21829514,137.54,137.47,7.2743]
[1740576249179,7.12,137.56,137.5,20.0]
[1740576249679,7.12,137.59,137.5,20.0]
[1740576250081,18.64964886,137.58,137.5,20.0]
[1740576250626,0.56864628,137.57,137.51,7.2721]
[1740576250792,0.56864628,137.57,137.5,20.0]
[1740576251200,0.56864628,137.57,137.5,27.2726]
[1740576253001,0.59864628,137.57,137.5,27.2726]
[1740576253509,0.59864628,137.57,137.5,20.0]
[1740576253721,0.59864628,137.57,137.5,27.2727]
[1740576254310,0.03,137.57,137.5,27.2727]
[1740576254611,0.14216157,137.54,137.47,7.2743]
[1740576255316,0.03,137.57,137.47,25.46]
[1740576255497,0.03,137.57,137.5,20.0]
[1740576255909,0.17216157,137.57,137.5,20.0]
[1740576256104,0.03,137.57,137.47,61.8315]
[1740576256623,0.14216157,137.54,137.47,25.46]
[1740576256923,18.79181043,137.54,137.47,25.46]
[1740576257111,18.79181043,137.54,137.47,7.2743]
[1740576257310,25.89181043,137.54,137.47,7.2743]
[1740576258919,18.79181043,137.52,137.47,7.2743]
[1740576259117,0.14216157,137.5,137.43,7.2764]
[1740576259300,18.79181043,137.5,137.43,7.2764]
[1740576259499,18.79181043,137.5,137.43,25.4674]
[1740576261827,18.79181043,137.5,137.43,7.2764]
[1740576261828,107.23613357,137.49,137.43,7.2764]
[1740576261999,0.14216157,137.46,137.41,7.2774]
[1740576262203,18.79181043,137.46,137.41,7.2774]
[1740576262825,18.79181043,137.46,137.41,25.4711]
[1740576263020,18.49181043,137.46,137.41,25.4711]
[1740576263623,81.1,137.48,137.41,25.4711]
[1740576264713,0.03,137.46,137.41,25.4711]
[1740576266235,81.1,137.52,137.41,289.52606367]
[1740576266403,18.64964886,137.51,137.41,287.9985]
[1740576266722,7.04,137.54,137.42,21.74565013]
[1740576267129,7.04,137.54,137.44,0.42648471]
[1740576267308,0.03,137.57,137.46,0.42648471]
[1740576267511,0.03,137.57,137.47,8.58674775]
[1740576267708,18.82181043,137.57,137.47,8.58674775]
[1740576267906,20.0,137.54,137.47,7.06]
[1740576268227,0.03,137.57,137.47,227.68681671]
[1740576268423,18.82181043,137.57,137.47,226.16]
[1740576268607,18.67964886,137.57,137.47,226.16]
[1740576269022,18.67964886,137.57,137.48,25.4581]
[1740576269511,0.03,137.57,137.48,99.72262406]
[1740576270672,0.03,137.57,137.5,61.8181]
[1740576270936,237.63134622,137.78,137.5,61.8181]
[1740576270937,82.1,137.75,137.59,21.56864628]
[1740576271240,20.0,137.66,137.6,7.14]
[1740576271539,81.13,137.71,137.6,7.14]
[1740576271739,81.13,137.71,137.61,0.42648471]
[1740576272037,18.79181043,137.7,137.6,8.66522944]
[1740576272339,81.13,137.71,137.64,20.0]
[1740576272340,0.03,137.71,137.64,20.0]
[1740576272510,0.03,137.71,137.62,0.28432314]
[1740576272709,0.03,137.71,137.63,61.7596]
[1740576273519,39.10613357,137.71,137.63,61.7596]
[1740576274248,20.0,137.68,137.63,61.7596]
[1740576274452,20.0,137.68,137.63,25.4304]
[1740576274833,20.0,137.68,137.63,18.1646]
[1740576275238,46.35829514,137.67,137.61,7.2669]
[1740576276063,19.21829514,137.65,137.58,7.2684]
[1740576276240,18.79181043,137.62,137.58,7.2684]
[1740576276549,25.99181043,137.62,137.58,7.2684]
[1740576276748,25.99181043,137.62,137.54,237.2757]
[1740576276935,0.14216157,137.6,137.55,7.27]
[1740576277140,20.0,137.58,137.55,7.27]
[1740576278773,20.0,137.58,137.51,237.2797]
[1740576278774,18.79181043,137.57,137.52,25.4507]
[1740576279069,25.97181043,137.57,137.52,25.4507]
[1740576280951,81.1,137.6,137.52,25.4507]
[1740576281156,4.69954848,137.65,137.52,244.5507]
[1740576281157,7.18,137.62,137.52,244.5507]
[1740576281352,18.64964886,137.61,137.52,244.5507]
[1740576282363,18.64964886,137.61,137.52,284.46536609]
[1740576282558,0.14216157,137.6,137.52,284.46536609]
[1740576283053,20.0,137.58,137.52,280.909]
[1740576283245,20.0,137.57,137.52,244.5507]
[1740576283449,20.0,137.56,137.52,108.3507]
[1740576285355,20.0,137.56,137.52,25.4507]
[1740576285533,19.07613357,137.55,137.52,25.4507]
[1740576285740,19.21829514,137.55,137.52,7.2716]
[1740576287060,19.21829514,137.55,137.51,7.2721]
[1740576288746,19.21829514,137.55,137.44,82.963]
[1740576288747,0.56864628,137.51,137.44,82.963]
[1740576289064,25.78964886,137.5,137.45,25.4637]
[1740576289739,0.56864628,137.49,137.45,25.4637]
[1740576289993,18.64964886,137.48,137.45,25.4637]
[1740576290276,88.24,137.5,137.45,25.4637]
[1740576291267,88.24,137.5,137.44,0.063]
[1740576292156,7.12,137.54,137.47,20.0]
[1740576292359,18.79181043,137.53,137.47,82.9]
[1740576293356,7.12,137.54,137.48,25.4581]
[1740576294566,7.12,137.54,137.48,61.827]
[1740576295359,18.79181043,137.53,137.48,25.4581]
[1740576295756,0.14216157,137.51,137.48,25.4581]
[1740576296364,0.14216157,137.52,137.48,25.4581]
[1740576297368,0.14216157,137.5,137.45,25.4637]
[1740576297565,18.64964886,137.49,137.45,25.4637]
[1740576297951,0.14216157,137.48,137.45,25.4637]
[1740576300146,18.64964886,137.47,137.45,7.2753]
[1740576300354,0.14216157,137.46,137.45,7.2753]
[1740576300553,18.64964886,137.47,137.45,7.2753]
[1740576301155,7.24216157,137.48,137.45,25.4637]
[1740576301351,81.1,137.51,137.47,0.063]
[1740576301563,7.1,137.53,137.47,82.963]
[1740576302058,81.1,137.57,137.47,219.163]
[1740576302371,2.88996996,137.59,137.47,0.48948471]
[1740576302372,7.12,137.58,137.47,0.48948471]
[1740576302574,88.22,137.59,137.48,0.42648471]
[1740576302753,18.79181043,137.58,137.48,1.95308468]
[1740576302956,18.79181043,137.58,137.48,0.42648471]
[1740576303158,88.22,137.59,137.48,219.1]
[1740576303364,20.0,137.55,137.49,25.4563]
[1740576303674,18.79181043,137.54,137.49,25.4563]
[1740576305052,81.1,137.67,137.53,20.42648471]
[1740576305246,82.1,137.67,137.54,25.90964886]
[1740576305454,81.1,137.67,137.55,25.4452]
[1740576305753,20.03,137.64,137.55,25.4452]
[1740576306154,39.21829514,137.63,137.55,25.4452]
[1740576306390,0.14216157,137.59,137.55,25.4452]
[1740576306871,20.0,137.58,137.55,25.4452]
[1740576307385,20.0,137.58,137.53,36.3553]
[1740576307759,18.64964886,137.61,137.53,36.3553]
[1740576308892,20.0,137.58,137.5,144.7181]
[1740576309184,0.03,137.64,137.56,64.79]
[1740576309366,0.03,137.64,137.57,69.1866]
[1740576309767,20.0,137.63,137.57,61.7866]
[1740576309975,0.03,137.64,137.57,61.7866]
[1740576310196,0.14216157,137.63,137.57,144.6866]
[1740576310691,0.14216157,137.63,137.57,108.3415]
[1740576311198,0.14216157,137.61,137.57,7.269]
[1740576311348,20.0,137.6,137.53,7.4]
[1740576311551,18.79181043,137.59,137.53,90.3]
[1740576311749,18.79181043,137.59,137.53,82.9]
[1740576312203,18.79181043,137.57,137.5,219.1]
[1740576312503,18.79181043,137.57,137.5,82.9]
[1740576312911,18.79181043,137.55,137.48,82.9]
[1740576313607,81.1,137.57,137.48,82.9]
[1740576313608,20.0,137.54,137.48,82.9]
[1740576313814,20.0,137.54,137.48,219.1]
[1740576314378,18.79181043,137.53,137.48,219.1]
[1740576314881,20.0,137.54,137.48,219.1]
[1740576315080,81.1,137.63,137.51,20.0]
[1740576315391,81.1,137.63,137.51,248.14640452]
[1740576315585,18.64964886,137.62,137.51,246.62]
[1740576316001,18.64964886,137.62,137.52,25.4507]
[1740576316183,81.66864628,137.61,137.52,108.3507]
[1740576316600,81.66864628,137.61,137.52,90.1716]
[1740576316601,0.14216157,137.58,137.52,90.1716]
[1740576316791,18.79181043,137.56,137.52,7.2716]
[1740576317486,81.1,137.58,137.49,219.1]
[1740576317686,0.14216157,137.57,137.5,25.4545]
[1740576317892,18.79181043,137.57,137.5,25.4545]
[1740576318108,18.79181043,137.57,137.5,7.2727]
[1740576318109,18.64964886,137.54,137.5,7.2727]
[1740576318281,0.14216157,137.55,137.5,7.2727]
[1740576318487,0.14216157,137.53,137.5,7.2727]
[1740576319516,0.14216157,137.53,137.47,25.522]
[1740576319828,0.14216157,137.53,137.47,7.3373]
[1740576320317,0.42648471,137.52,137.47,7.3373]
[1740576320485,18.79181043,137.51,137.47,7.3373]
[1740576321605,18.79181043,137.49,137.47,0.063]
[1740576321786,26.25181043,137.49,137.47,0.063]
[1740576321988,0.42648471,137.48,137.47,0.063]
[1740576322620,100.31829514,137.48,137.47,0.063]
[1740576324493,102.31829514,137.48,137.47,0.063]
[1740576325213,21.21829514,137.48,137.47,0.063]
[1740576326430,20.21829514,137.48,137.47,0.063]
[1740576326712,21.21829514,137.48,137.47,0.063]
[1740576327985,24.90259408,137.48,137.47,0.063]
[1740576329890,25.05836224,137.48,137.47,0.063]
[1740576330689,40.21829514,137.45,137.44,0.063]
[1740576331101,41.21829514,137.45,137.44,0.063]
[1740576331901,20.0,137.41,137.36,0.063]
[1740576332191,18.79181043,137.37,137.36,0.063]
[1740576332810,7.4,137.41,137.36,0.063]
[1740576333105,0.56864628,137.4,137.36,0.063]
[1740576333704,18.64964886,137.39,137.36,0.063]
[1740576333913,0.14216157,137.37,137.36,0.063]
[1740576334706,19.21829514,137.37,137.36,0.063]
[1740576335504,39.21829514,137.34,137.33,7.3447]
[1740576335704,39.21829514,137.34,137.33,0.063]
[1740576337196,3.71667298,137.39,137.33,0.063]
[1740576337397,81.1,137.38,137.33,0.063]
[1740576337594,20.0,137.35,137.33,0.063]
[1740576338106,19.21829514,137.34,137.33,0.063]
[1740576338302,39.21829514,137.34,137.33,0.063]
[1740576338622,46.59829514,137.34,137.33,0.063]
[1740576341617,26.59829514,137.34,137.33,0.063]
[1740576341825,27.59829514,137.34,137.33,0.063]
[1740576342319,28.59829514,137.34,137.33,0.063]
[1740576345125,32.27758869,137.34,137.33,0.063]
[1740576346125,31.27758869,137.34,137.33,0.063]
[1740576346302,30.27758869,137.34,137.33,0.063]
[1740576346717,30.85110398,137.34,137.33,0.063]
[1740576347008,30.27758869,137.34,137.33,0.063]
[1740576347614,29.70894241,137.34,137.33,0.063]
[1740576347809,22.89758869,137.34,137.33,0.063]
[1740576348017,30.21758869,137.34,137.33,0.063]
[1740576348717,26.53829514,137.34,137.33,0.063]
[1740576349110,27.53829514,137.34,137.33,0.063]
[1740576349311,26.53829514,137.34,137.33,0.063]
[1740576350014,26.53035523,137.34,137.33,0.063]
[1740576350420,26.6725168,137.34,137.33,0.063]
[1740576350709,26.38819366,137.34,137.33,0.063]
[1740576351119,26.6725168,137.34,137.33,0.063]
[1740576353527,27.6725168,137.34,137.33,0.063]
[1740576353712,28.6725168,137.34,137.33,0.063]
[1740576356635,28.24603209,137.34,137.33,0.063]
[1740576357136,28.6725168,137.34,137.33,0.063]
[1740576361023,41.21829514,137.32,137.31,0.063]
[1740576364026,21.56864628,137.29,137.28,0.063]
[1740576364220,47.41829514,137.29,137.28,0.063]
[1740576364634,20.56864628,137.25,137.24,0.063]
[1740576364952,39.21829514,137.25,137.24,0.063]
[1740576365132,44.06387708,137.25,137.24,0.063]
[1740576366251,2.56864628,137.23,137.22,0.063]
[1740576366433,28.41829514,137.23,137.22,0.063]
[1740576369947,28.55867684,137.23,137.22,0.063]
[1740576370251,27.55867684,137.23,137.22,0.063]
[1740576370459,28.55867684,137.23,137.22,0.063]